fUST/lending_fUST_20251121
["ID","MTS","AMOUNT","RATE_DAILY","PERIOD"]
[394546058,1763688434724,-500.0,9.736e-05,2]
[394546059,1763688434750,-500.0,9.736e-05,2]
[394546060,1763688434775,-500.0,9.736e-05,2]
[394546061,1763688434800,-500.0,9.736e-05,2]
[394546062,1763688434825,-500.0,9.736e-05,2]
[394546063,1763688434849,-493.5648871,9.736e-05,2]
[394546064,1763688434874,-300.62693907,9.736e-05,2]
[394546071,1763688611104,170.41460588,0.00032777,120]
[394546110,1763688631994,-199.37306093,9.736e-05,2]
[394546111,1763688632003,-500.0,9.736e-05,2]
[394546112,1763688632013,-500.0,9.736e-05,2]
[394546113,1763688632022,-134.80610484,9.736e-05,2]
[394546124,1763688637957,-117.94975813,9.736e-05,2]
[394546125,1763688637967,-300.0,9.736e-05,2]
[394546126,1763688637976,-300.0,9.736e-05,2]
[394546127,1763688637985,-587.0,9.736e-05,2]
[394546128,1763688637995,-95502.83639325,9.737e-05,2]
[394546129,1763688638006,-6398.00871404,9.737e-05,2]
[394546144,1763688644743,-860.44229465,9.737e-05,2]
[394546254,1763688694960,542.1565817,0.00032876,120]
[394546256,1763688726915,661.0,0.0003287,120]
[394546258,1763688759624,10000.0,0.00032877,120]
[394546260,1763688769207,313.2253021,0.000322,120]
[394546262,1763688826361,4942.0,0.00032877,120]
[394546264,1763688925083,187.272519,0.00032876,120]
[394546267,1763688940109,3260.745674,0.00032877,120]
[394546268,1763688969139,340.0,0.000328,120]
[394546274,1763689294556,1634.73,0.00032,120]
[394546280,1763689482675,3020.0,0.00032877,120]
[394546299,1763689609134,-223.02823501,8.501e-05,2]
[394546301,1763689632074,-929.20249612,8.103e-05,2]
[394546306,1763689649082,-1517.50998938,8.103e-05,2]
[394546307,1763689649106,-90.44933736,8.501e-05,2]
[394546308,1763689649127,-247.70074571,8.504e-05,2]
[394546309,1763689649148,-514.59119921,8.507e-05,2]
[394546310,1763689649169,-240.48248771,8.507e-05,2]
[394546311,1763689649189,-655.30131,8.983e-05,2]
[394546312,1763689649210,-252.8086966,9.345e-05,2]
[394546313,1763689649230,-455.05565388,9.345e-05,2]
[394546314,1763689649251,-191.05609274,9.345e-05,2]
[394546315,1763689649272,-343.90096693,9.345e-05,2]
[394546316,1763689649293,-300.0,9.611e-05,2]
[394546317,1763689649313,-390.51657588,9.612e-05,2]
[394546318,1763689649336,-500.0,9.612e-05,2]
[394546319,1763689649363,-500.0,9.612e-05,2]
[394546320,1763689649386,-500.0,9.612e-05,2]
[394546321,1763689649410,-500.0,9.612e-05,2]
[394546322,1763689649436,-500.0,9.612e-05,2]
[394546323,1763689649458,-500.0,9.612e-05,2]
[394546324,1763689649481,-500.0,9.612e-05,2]
[394546325,1763689649504,-500.0,9.612e-05,2]
[394546326,1763689649526,-500.0,9.612e-05,2]
[394546327,1763689649551,-500.0,9.612e-05,2]
[394546328,1763689649574,-500.0,9.612e-05,2]
[394546329,1763689649597,-626.51677562,9.612e-05,2]
[394546330,1763689649620,-500.0,9.612e-05,2]
[394546331,1763689649643,-433.48447059,9.612e-05,2]
[394546332,1763689649667,-251.6054484,9.612e-05,2]
[394546336,1763689666539,1000.0,0.00032,120]
[394546338,1763689684805,153.0,0.00032877,120]
[394546343,1763689726694,1501.60248676,0.00030137,120]
[394546347,1763689765172,1067.6,0.00032877,120]
[394546348,1763689781193,132795.20301938,0.0001475,19]
[394546358,1763689832083,-264.04937774,8.507e-05,2]
[394546366,1763689837932,-147.74705882,8.507e-05,2]
[394546367,1763689837942,-4678.8450579,8.685e-05,2]
[394546368,1763689837952,-500.0,9.513e-05,2]
[394546369,1763689837962,-500.0,9.513e-05,2]
[394546370,1763689837971,-500.0,9.513e-05,2]
[394546371,1763689837980,-638.99722714,9.513e-05,2]
[394546372,1763689837990,-291.83519729,9.534e-05,2]
[394546373,1763689837999,-500.0,9.534e-05,2]
[394546374,1763689838009,-500.0,9.534e-05,2]
[394546375,1763689838019,-500.0,9.534e-05,2]
[394546376,1763689838028,-500.0,9.534e-05,2]
[394546377,1763689838038,-500.0,9.534e-05,2]
[394546379,1763689838048,-500.0,9.534e-05,2]
[394546381,1763689838057,-500.0,9.534e-05,2]
[394546382,1763689838072,-216.9035435,9.534e-05,2]
[394546383,1763689838082,-500.0,9.534e-05,2]
[394546384,1763689838091,-500.0,9.534e-05,2]
[394546385,1763689838102,-300.0,9.535e-05,2]
[394546386,1763689838111,-1200.0,9.535e-05,2]
[394546387,1763689838120,-243.42589454,9.536e-05,2]
[394546388,1763689838130,-152237.80512268,9.537e-05,2]
[394546389,1763689838149,-4167.96378097,9.537e-05,2]
[394546392,1763689840087,-394.56133503,9.537e-05,2]
[394546393,1763689840142,-2665.76654565,9.537e-05,2]
[394546394,1763689840153,-9376.10140001,9.537e-05,2]
[394546395,1763689840199,-3242.02485253,9.537e-05,2]
[394546421,1763689844902,-17357.11975123,9.537e-05,2]
[394546425,1763689846276,-2661.87843209,9.537e-05,2]
[394546431,1763689910445,1000.0,0.0001,3]
[394546437,1763689955319,1000.0,0.00032,120]
[394546439,1763689963615,154.7563163,0.00032876,120]
[394546445,1763690094480,500.0,0.00032,120]
[394546484,1763690276117,1812.024769,0.00030137,120]
[394546488,1763690302085,1462.49618384,0.0003287,120]
[394546502,1763690564870,299.999,0.00032876,120]
[394546506,1763690827087,-489.27377163,9.037e-05,2]
[394546507,1763690827111,-383.0,9.345e-05,2]
[394546508,1763690827132,-3582.0,9.346e-05,2]
[394546509,1763690827151,-258.539,9.346e-05,2]
[394546510,1763690827174,-242.7467308,9.346e-05,2]
[394546511,1763690827195,-185.06692353,9.346e-05,2]
[394546512,1763690827216,-300.0,9.392e-05,2]
[394546513,1763690827235,-500.0,9.393e-05,2]
[394546514,1763690827259,-512.97763526,9.393e-05,2]
[394546515,1763690827279,-118.62829684,9.393e-05,2]
[394546521,1763691025782,3672.69,0.00014,30]
[394546562,1763691032125,-329.53596063,8.507e-05,2]
[394546564,1763691032135,-192.80921539,9.393e-05,2]
[394546583,1763691032372,-307.19078461,9.393e-05,2]
[394546584,1763691032382,-243.04115498,9.403e-05,2]
[394546585,1763691032392,-300.0,9.412e-05,2]
[394546586,1763691032402,-272.79448663,9.412e-05,2]
[394546587,1763691032413,-27.20551337,9.412e-05,2]
[394546588,1763691032423,-300.0,9.412e-05,2]
[394546589,1763691032432,-500.0,9.413e-05,2]
[394546590,1763691032442,-921.69008609,9.413e-05,2]
[394546591,1763691032452,-500.0,9.413e-05,2]
[394546592,1763691032462,-500.0,9.413e-05,2]
[394546593,1763691032471,-921.69008609,9.413e-05,2]
[394546594,1763691032481,-507.99162567,9.413e-05,2]
[394546595,1763691032490,-500.0,9.413e-05,2]
[394546596,1763691032500,-921.69008609,9.413e-05,2]
[394546597,1763691032510,-500.0,9.413e-05,2]
[394546598,1763691032521,-921.69008609,9.413e-05,2]
[394546599,1763691032531,-500.0,9.413e-05,2]
[394546600,1763691032540,-921.69008609,9.413e-05,2]
[394546601,1763691032550,-500.0,9.413e-05,2]
[394546602,1763691032559,-500.0,9.413e-05,2]
[394546603,1763691032570,-921.69008609,9.413e-05,2]
[394546604,1763691032579,-500.0,9.413e-05,2]
[394546605,1763691032589,-921.69008609,9.413e-05,2]
[394546606,1763691032598,-393.55431018,9.413e-05,2]
[394546607,1763691032608,-921.69008609,9.413e-05,2]
[394546608,1763691032617,-500.0,9.413e-05,2]
[394546609,1763691032627,-921.69008609,9.413e-05,2]
[394546610,1763691032636,-921.69008609,9.413e-05,2]
[394546611,1763691032646,-500.0,9.413e-05,2]
[394546612,1763691032656,-921.69008609,9.413e-05,2]
[394546613,1763691032665,-921.69008609,9.413e-05,2]
[394546614,1763691032675,-500.0,9.413e-05,2]
[394546615,1763691032684,-921.69008609,9.413e-05,2]
[394546616,1763691032694,-921.69008609,9.413e-05,2]
[394546617,1763691032703,-921.69008609,9.413e-05,2]
[394546618,1763691032714,-500.0,9.413e-05,2]
[394546619,1763691032723,-921.69008609,9.413e-05,2]
[394546620,1763691032732,-921.69008609,9.413e-05,2]
[394546621,1763691032741,-500.0,9.413e-05,2]
[394546622,1763691032750,-921.69008609,9.413e-05,2]
[394546623,1763691032759,-921.69008609,9.413e-05,2]
[394546624,1763691032769,-921.69008609,9.413e-05,2]
[394546625,1763691032778,-921.69008609,9.413e-05,2]
[394546626,1763691032787,-921.69008609,9.413e-05,2]
[394546627,1763691032796,-921.69008609,9.413e-05,2]
[394546628,1763691032806,-921.69008609,9.413e-05,2]
[394546629,1763691032815,-921.69008609,9.413e-05,2]
[394546630,1763691032824,-921.69008609,9.413e-05,2]
[394546631,1763691032833,-921.69008609,9.413e-05,2]
[394546632,1763691032842,-921.69008609,9.413e-05,2]
[394546633,1763691032852,-921.69008609,9.413e-05,2]
[394546634,1763691032861,-921.69008609,9.413e-05,2]
[394546635,1763691032870,-921.69008609,9.413e-05,2]
[394546636,1763691032880,-921.69008609,9.413e-05,2]
[394546637,1763691032889,-921.69008609,9.413e-05,2]
[394546638,1763691032898,-921.69008609,9.413e-05,2]
[394546639,1763691032908,-921.69008609,9.413e-05,2]
[394546640,1763691032917,-921.69008609,9.413e-05,2]
[394546641,1763691032926,-921.69008609,9.413e-05,2]
[394546642,1763691032936,-921.69008609,9.413e-05,2]
[394546643,1763691032945,-921.69008609,9.413e-05,2]
[394546644,1763691032954,-921.69008609,9.413e-05,2]
[394546645,1763691032964,-662.94059084,9.413e-05,2]
[394546646,1763691032976,-258.74949525,9.413e-05,2]
[394546647,1763691032986,-921.69008609,9.413e-05,2]
[394546648,1763691032997,-921.69008609,9.413e-05,2]
[394546649,1763691033006,-921.69008609,9.413e-05,2]
[394546650,1763691033015,-921.69008609,9.413e-05,2]
[394546651,1763691033024,-921.69008609,9.413e-05,2]
[394546652,1763691033034,-921.69008609,9.413e-05,2]
[394546653,1763691033043,-921.69008609,9.413e-05,2]
[394546654,1763691033053,-921.69008609,9.413e-05,2]
[394546655,1763691033062,-921.69008609,9.413e-05,2]
[394546656,1763691033071,-921.69008609,9.413e-05,2]
[394546657,1763691033082,-921.69008609,9.413e-05,2]
[394546658,1763691033091,-921.69008609,9.413e-05,2]
[394546659,1763691033100,-921.69008609,9.413e-05,2]
[394546660,1763691033110,-921.69008609,9.413e-05,2]
[394546661,1763691033119,-921.69008609,9.413e-05,2]
[394546662,1763691033129,-921.69008609,9.413e-05,2]
[394546663,1763691033139,-921.69008609,9.413e-05,2]
[394546664,1763691033149,-921.69008609,9.413e-05,2]
[394546665,1763691033162,-921.69008609,9.413e-05,2]
[394546666,1763691033171,-921.69008609,9.413e-05,2]
[394546667,1763691033180,-921.69008609,9.413e-05,2]
[394546668,1763691033190,-890.96708321,9.413e-05,2]
[394546669,1763691033201,-890.96708321,9.413e-05,2]
[394546670,1763691033211,-890.96708321,9.413e-05,2]
[394546671,1763691033220,-890.96708321,9.413e-05,2]
[394546672,1763691033229,-890.96708321,9.413e-05,2]
[394546673,1763691033238,-890.96708321,9.413e-05,2]
[394546674,1763691033247,-890.96708321,9.413e-05,2]
[394546675,1763691033256,-890.96708321,9.413e-05,2]
[394546676,1763691033265,-890.96708321,9.413e-05,2]
[394546677,1763691033275,-890.96708321,9.413e-05,2]
[394546678,1763691033284,-890.96708321,9.413e-05,2]
[394546679,1763691033294,-890.96708321,9.413e-05,2]
[394546680,1763691033303,-890.96708321,9.413e-05,2]
[394546681,1763691033313,-890.96708321,9.413e-05,2]
[394546682,1763691033322,-890.96708321,9.413e-05,2]
[394546683,1763691033331,-890.96708321,9.413e-05,2]
[394546684,1763691033341,-890.96708321,9.413e-05,2]
[394546685,1763691033356,-890.96708321,9.413e-05,2]
[394546686,1763691033365,-890.96708321,9.413e-05,2]
[394546687,1763691033374,-890.96708321,9.413e-05,2]
[394546688,1763691033384,-890.96708321,9.413e-05,2]
[394546689,1763691033394,-890.96708321,9.413e-05,2]
[394546690,1763691033403,-890.96708321,9.413e-05,2]
[394546691,1763691033412,-890.96708321,9.413e-05,2]
[394546692,1763691033422,-890.96708321,9.413e-05,2]
[394546693,1763691033432,-890.96708321,9.413e-05,2]
[394546694,1763691033442,-338.95380005,9.413e-05,2]
[394546718,1763691038079,-1200.0,9.413e-05,2]
[394546720,1763691038089,-500.0,9.414e-05,2]
[394546722,1763691038098,-300.0,9.415e-05,2]
[394546724,1763691038110,-30894.76452898,9.415e-05,2]
[394546727,1763691038132,-101638.31486826,9.415e-05,2]
[394546856,1763691074583,312.23460062,0.00032876,120]
[394546858,1763691294844,-1328.40868282,0.0003841,120]
[394546859,1763691294877,-6349.0,0.0003841,30]
[394546860,1763691294911,-12463.53938415,0.0003841,120]
[394546861,1763691294942,-300.0,0.0003841,120]
[394546862,1763691294972,-2193.0,0.0003841,120]
[394546863,1763691295002,-150.0,0.0003841,30]
[394546864,1763691295032,-185.0,0.0003841,30]
[394546865,1763691295063,-17580.0,0.0003841,120]
[394546866,1763691295093,-1192.763074,0.0003841,120]
[394546867,1763691295124,-1625.0,0.0003841,30]
[394546868,1763691295153,-2528.24487292,0.0003841,120]
[394546869,1763691295183,-200.0,0.0003841,30]
[394546870,1763691295212,-151.0,0.0003841,50]
[394546871,1763691295245,-151.0,0.0003841,50]
[394546872,1763691295274,-151.0,0.0003841,50]
[394546873,1763691295305,-151.165033,0.0003841,50]
[394546874,1763691295337,-151.0,0.0003841,50]
[394546926,1763691312485,191.55298098,0.0003841,120]
[394546927,1763691317958,253.33346141,0.0003841,120]
[394546930,1763691329178,207.797043,0.0003841,120]
[394546934,1763691334107,151.0,0.0003841,50]
[394546935,1763691334404,153.861662,0.0003841,50]
[394546974,1763691381126,200.0,0.0003841,30]
[394546982,1763691417790,174.94691603,0.0003841,20]
[394547047,1763691625399,151.0,0.0003841,50]
[394547048,1763691625725,151.0,0.0003841,50]
[394547049,1763691626019,184.24652,0.0003841,50]
[394547050,1763691631625,1221.621672,0.0003841,50]
[394547051,1763691632894,1221.621672,0.0003841,50]
[394547052,1763691632968,1221.621672,0.0003841,50]
[394547053,1763691633035,1221.621672,0.0003841,50]
[394547054,1763691633229,1221.621672,0.0003841,50]
[394547055,1763691633431,1221.621672,0.0003841,50]
[394547056,1763691633728,1221.621672,0.0003841,50]
[394547057,1763691633896,1221.621672,0.0003841,50]
[394547058,1763691634188,1221.621672,0.0003841,50]
[394547059,1763691634465,1221.621672,0.0003841,50]
[394547060,1763691634760,1221.621672,0.0003841,50]
[394547061,1763691635068,1221.621672,0.0003841,50]
[394547062,1763691635323,1221.621672,0.0003841,50]
[394547063,1763691635618,1221.621672,0.0003841,50]
[394547064,1763691635895,1221.621672,0.0003841,50]
[394547065,1763691636180,1221.621672,0.0003841,50]
[394547066,1763691636501,1221.621672,0.0003841,50]
[394547067,1763691636786,1221.621672,0.0003841,50]
[394547068,1763691637359,1221.621672,0.0003841,50]
[394547069,1763691637654,1221.62166606,0.0003841,50]
[394547071,1763691680681,200.0,0.0003841,30]
[394547073,1763691711849,172.243587,0.0003841,50]
[394547080,1763691758950,1266.0,0.00014,30]
[394547083,1763691784929,157.062071,0.0003841,50]
[394547088,1763691791254,151.0,0.0003841,50]
[394547089,1763691791571,151.0,0.0003841,50]
[394547091,1763691791868,151.0,0.0003841,50]
[394547092,1763691792170,185.635605,0.0003841,50]
[394547093,1763691797653,164.054217,0.0003841,50]
[394547094,1763691803892,164.578594,0.0003841,50]
[394547097,1763691818976,151.0,0.0003841,50]
[394547098,1763691819034,151.0,0.0003841,50]
[394547099,1763691819247,151.0,0.0003841,50]
[394547100,1763691819525,169.141822,0.0003841,50]
[394547121,1763691924111,500.0,0.000328,120]
[394547123,1763691928944,151.0,0.0003841,50]
[394547124,1763691929532,157.653509,0.0003841,50]
[394547126,1763691933922,500.0,0.000328,120]
[394547138,1763691976805,341.5737298,0.000328,120]
[394547140,1763691980719,200.0,0.0003841,30]
[394547144,1763691994496,151.0,0.0003841,50]
[394547145,1763691994657,215.097666,0.0003841,50]
[394547147,1763692026308,-378.32636598,7.882e-05,2]
[394547148,1763692026329,-238.18033188,8.635e-05,2]
[394547149,1763692026351,-287.321,9.128e-05,2]
[394547150,1763692026371,-500.0,9.293e-05,2]
[394547151,1763692026390,-500.0,9.293e-05,2]
[394547152,1763692026409,-500.0,9.293e-05,2]
[394547153,1763692026428,-500.0,9.293e-05,2]
[394547154,1763692026449,-300.0,9.311e-05,2]
[394547155,1763692026473,-327.04136235,9.312e-05,2]
[394547156,1763692026493,-500.0,9.312e-05,2]
[394547157,1763692026517,-500.0,9.312e-05,2]
[394547158,1763692026537,-500.0,9.312e-05,2]
[394547159,1763692026556,-265.95047891,9.312e-05,2]
[394547160,1763692026578,-500.0,9.312e-05,2]
[394547161,1763692026599,-500.0,9.312e-05,2]
[394547162,1763692026619,-464.11604615,9.312e-05,2]
[394547163,1763692026642,-500.0,9.312e-05,2]
[394547164,1763692026663,-500.0,9.312e-05,2]
[394547165,1763692026685,-363.8188588,9.312e-05,2]
[394547166,1763692026711,-500.0,9.312e-05,2]
[394547167,1763692026737,-500.0,9.312e-05,2]
[394547168,1763692026764,-500.0,9.312e-05,2]
[394547169,1763692026789,-500.0,9.312e-05,2]
[394547170,1763692026816,-500.0,9.312e-05,2]
[394547171,1763692026841,-500.0,9.312e-05,2]
[394547172,1763692026866,-500.0,9.312e-05,2]
[394547173,1763692026891,-43.47543735,9.312e-05,2]
[394547177,1763692031070,-500.0,9.293e-05,2]
[394547178,1763692031097,-456.52456265,9.312e-05,2]
[394547179,1763692031122,-500.0,9.312e-05,2]
[394547180,1763692031147,-500.0,9.312e-05,2]
[394547181,1763692031171,-500.0,9.312e-05,2]
[394547182,1763692031197,-500.0,9.312e-05,2]
[394547183,1763692031222,-500.0,9.312e-05,2]
[394547184,1763692031247,-500.0,9.312e-05,2]
[394547185,1763692031274,-340.90863903,9.312e-05,2]
[394547207,1763692060738,155.25010618,0.0003841,120]
[394547218,1763692110237,830.7346253,0.0003841,120]
[394547221,1763692111075,632.12198475,0.0003841,120]
[394547224,1763692117309,967.20013543,0.00038412,30]
[394547241,1763692127428,13104.76920519,0.00038412,120]
[394547258,1763692163026,174.658839,0.00038412,50]
[394547290,1763692232426,-316.45435769,8.507e-05,2]
[394547292,1763692232436,-300.0,9.31e-05,2]
[394547294,1763692232445,-300.0,9.31e-05,2]
[394547296,1763692232455,-1200.0,9.31e-05,2]
[394547298,1763692232464,-262.64653987,9.311e-05,2]
[394547300,1763692232475,-162.67956068,9.311e-05,2]
[394547302,1763692232485,-500.0,9.311e-05,2]
[394547304,1763692232495,-500.0,9.311e-05,2]
[394547306,1763692232505,-500.0,9.311e-05,2]
[394547309,1763692232514,-500.0,9.311e-05,2]
[394547312,1763692232524,-500.0,9.311e-05,2]
[394547315,1763692232533,-500.0,9.311e-05,2]
[394547318,1763692232545,-500.0,9.311e-05,2]
[394547321,1763692232555,-378.88491504,9.311e-05,2]
[394547428,1763692238433,-121.11508496,9.311e-05,2]
[394547429,1763692238443,-500.0,9.311e-05,2]
[394547430,1763692238453,-543.18222486,9.311e-05,2]
[394547431,1763692238463,-500.0,9.311e-05,2]
[394547432,1763692238473,-500.0,9.311e-05,2]
[394547433,1763692238483,-32.00144076,9.311e-05,2]
[394547434,1763692238555,-467.99855924,9.311e-05,2]
[394547435,1763692238565,-500.0,9.311e-05,2]
[394547436,1763692238575,-500.0,9.311e-05,2]
[394547439,1763692238585,-500.0,9.311e-05,2]
[394547441,1763692238595,-500.0,9.311e-05,2]
[394547442,1763692238605,-500.0,9.311e-05,2]
[394547443,1763692238616,-500.0,9.311e-05,2]
[394547444,1763692238626,-500.0,9.311e-05,2]
[394547445,1763692238636,-500.0,9.311e-05,2]
[394547446,1763692238646,-500.0,9.311e-05,2]
[394547447,1763692238658,-500.0,9.311e-05,2]
[394547448,1763692238668,-500.0,9.311e-05,2]
[394547449,1763692238677,-500.0,9.311e-05,2]
[394547450,1763692238687,-500.0,9.311e-05,2]
[394547451,1763692238696,-500.0,9.311e-05,2]
[394547452,1763692238706,-500.0,9.311e-05,2]
[394547453,1763692238716,-500.0,9.311e-05,2]
[394547454,1763692238726,-500.0,9.311e-05,2]
[394547455,1763692238736,-500.0,9.311e-05,2]
[394547456,1763692238745,-500.0,9.311e-05,2]
[394547457,1763692238755,-500.0,9.311e-05,2]
[394547458,1763692238764,-500.0,9.311e-05,2]
[394547459,1763692238775,-500.0,9.311e-05,2]
[394547460,1763692238784,-500.0,9.311e-05,2]
[394547461,1763692238793,-500.0,9.311e-05,2]
[394547462,1763692238802,-500.0,9.311e-05,2]
[394547463,1763692238811,-500.0,9.311e-05,2]
[394547464,1763692238821,-500.0,9.311e-05,2]
[394547465,1763692238830,-500.0,9.311e-05,2]
[394547466,1763692238840,-500.0,9.311e-05,2]
[394547467,1763692238849,-646.47373254,9.311e-05,2]
[394547468,1763692238858,-238.45968489,9.311e-05,2]
[394547469,1763692238868,-500.0,9.314e-05,2]
[394547470,1763692238878,-228.92895364,9.314e-05,2]
[394547471,1763692238888,-18266.7452646,9.315e-05,2]
[394547472,1763692238901,-33161.10015468,9.315e-05,2]
[394547481,1763692246701,-400.0,9.315e-05,2]
[394547489,1763692280513,200.0,0.00038412,30]
[394547517,1763692392877,2000.0,0.00038412,20]
[394547524,1763692546296,3880.0,0.00032877,120]
[394547526,1763692581468,200.0,0.00038327,30]
[394547539,1763692801484,1416.03888575,0.00038409,60]
[394547602,1763692937528,4043.99999901,0.00038409,60]
[394547713,1763693203086,-223.02823501,6.729e-05,2]
[394547714,1763693204744,248.87669184,0.00038409,20]
[394547726,1763693233328,-1190.98724901,6.729e-05,2]
[394547727,1763693233351,-75.03831766,7.296e-05,2]
[394547729,1763693240089,-1338.97716636,7.296e-05,2]
[394547730,1763693240276,-1414.01548402,7.863e-05,2]
[394547731,1763693240297,-1414.01548402,8.43e-05,2]
[394547732,1763693240317,-300.0,8.995e-05,2]
[394547733,1763693240342,-500.0,8.996e-05,2]
[394547734,1763693240363,-390.51657588,8.996e-05,2]
[394547735,1763693240387,-500.0,8.996e-05,2]
[394547736,1763693240410,-500.0,8.996e-05,2]
[394547737,1763693240432,-500.0,8.996e-05,2]
[394547738,1763693240454,-500.0,8.996e-05,2]
[394547739,1763693240477,-568.48804867,8.996e-05,2]
[394547740,1763693240500,-500.0,8.996e-05,2]
[394547741,1763693240523,-500.0,8.996e-05,2]
[394547742,1763693240546,-500.0,8.996e-05,2]
[394547743,1763693240568,-500.0,8.996e-05,2]
[394547744,1763693240592,-500.0,8.996e-05,2]
[394547745,1763693240619,-500.0,8.996e-05,2]
[394547746,1763693240641,-500.0,8.996e-05,2]
[394547747,1763693240663,-500.0,8.996e-05,2]
[394547748,1763693240683,-500.0,8.996e-05,2]
[394547749,1763693240704,-0.69200421,8.996e-05,2]
[394547761,1763693263382,658.36650346,0.00038409,20]
[394547795,1763693359659,2218.51555741,0.00032876,120]
[394547817,1763693424557,171.786811,0.0003841,50]
[394547818,1763693424891,171.786811,0.0003841,50]
[394547819,1763693425200,171.786811,0.0003841,50]
[394547820,1763693425487,171.786811,0.0003841,50]
[394547821,1763693425866,171.786811,0.0003841,50]
[394547822,1763693426307,171.786811,0.0003841,50]
[394547823,1763693426494,171.786811,0.0003841,50]
[394547825,1763693426860,171.786811,0.0003841,50]
[394547828,1763693427150,171.786811,0.0003841,50]
[394547831,1763693427458,171.786811,0.0003841,50]
[394547834,1763693427749,171.786811,0.0003841,50]
[394547837,1763693428051,171.786811,0.0003841,50]
[394547839,1763693428347,171.786811,0.0003841,50]
[394547840,1763693428713,171.786811,0.0003841,50]
[394547841,1763693429019,171.786811,0.0003841,50]
[394547842,1763693429315,171.786811,0.0003841,50]
[394547843,1763693429465,151.0,0.0003841,50]
[394547844,1763693429634,171.786811,0.0003841,50]
[394547845,1763693429782,151.0,0.0003841,50]
[394547846,1763693429930,171.786811,0.0003841,50]
[394547847,1763693430087,151.0,0.0003841,50]
[394547848,1763693430284,171.786811,0.0003841,50]
[394547849,1763693430380,151.0,0.0003841,50]
[394547850,1763693430525,171.786815,0.0003841,50]
[394547851,1763693430669,151.0,0.0003841,50]
[394547852,1763693431060,151.0,0.0003841,50]
[394547854,1763693431213,151.0,0.0003841,50]
[394547857,1763693431267,151.0,0.0003841,50]
[394547883,1763693431543,151.0,0.0003841,50]
[394547884,1763693431582,151.0,0.0003841,50]
[394547885,1763693431641,-356.03418266,8.507e-05,2]
[394547886,1763693431650,-846.32247661,8.997e-05,2]
[394547893,1763693431854,151.0,0.0003841,50]
[394547899,1763693431895,151.0,0.0003841,50]
[394547930,1763693432189,151.0,0.0003841,50]
[394547936,1763693432239,151.0,0.0003841,50]
[394547964,1763693432484,151.0,0.0003841,50]
[394547977,1763693432599,198.497952,0.0003841,50]
[394547986,1763693433016,151.0,0.0003841,50]
[394547988,1763693433320,151.0,0.0003841,50]
[394547989,1763693433618,151.0,0.0003841,50]
[394547990,1763693433905,261.098518,0.0003841,50]
[394548049,1763693445785,-246.35720186,8.998e-05,2]
[394548050,1763693445794,-300.0,8.998e-05,2]
[394548051,1763693445805,-263.0,8.998e-05,2]
[394548052,1763693445816,-790.82443697,8.998e-05,2]
[394548065,1763693509329,506.72,0.0003841,20]
[394548067,1763693511665,298.776163,0.0003841,50]
[394548074,1763693592454,1357.74,0.0003841,20]
[394548082,1763693714236,209.40437684,0.00038434,60]
[394548083,1763693729339,151.0,0.00038434,50]
[394548084,1763693729641,151.0,0.00038434,50]
[394548105,1763693790756,150.0,0.00011957,30]
[394548106,1763693791499,189.79,0.00012249,30]
[394548107,1763693791792,284.68,0.0001254,30]
[394548108,1763693792708,379.57,0.00012832,30]
[394548109,1763693793144,474.46,0.00013123,30]
[394548110,1763693793380,569.36,0.00013415,30]
[394548111,1763693793646,664.25,0.00013707,30]
[394548112,1763693794057,759.14,0.00013998,30]
[394548113,1763693794360,854.04,0.0001429,30]
[394548114,1763693794599,893.82957548,0.00014582,30]
[394548132,1763693868473,150.0,0.00010363,30]
[394548133,1763693868880,150.0,0.00010616,30]
[394548134,1763693869277,199.28,0.00010868,30]
[394548135,1763693870209,265.7,0.00011121,30]
[394548136,1763693870633,332.13,0.00011374,30]
[394548137,1763693871064,398.55,0.00011627,30]
[394548138,1763693871473,464.98,0.00011879,30]